[Event "106th British-ch Major 2019"]
[Site "Torquay"]
[Date "2019.07.29"]
[Round "3.29"]
[White "Sheerin, Alex"]
[Black "Balaji, Aaravamudhan"]
[Result "1/2-1/2"]
[ECO "B07"]
[WhiteElo "1845"]
[BlackElo "2034"]
[Annotator "NA"]
[PlyCount "134"]
[EventDate "2019.07.27"]
[EventType "swiss"]
[EventCountry "GBR"]
[SourceTitle "playchess.com"]
[Source "ChessBase"]
[SourceQuality "1"]
[TimeControl "40/5400+30:1800+30"]

1. d4 {[%emt 0:00:00]} Nf6 {[%emt 0:00:00]} 2. Nc3 {[%emt 0:00:00]} g6 {[%emt 0:00:00]} 3. Bf4 {[%emt 0:00:00]} Bg7 {[%emt 0:00:04]} 4. e4 {[%emt 0:00:07]} d6 {[%emt 0:00:12]} 5. Qd2 {[%emt 0:00:15]} c6 {[%emt 0:00:12]} 6. O-O-O {[%emt 0:00:34]} b5 {[%emt 0:00:25]} 7. f3 {[%emt 0:00:35]} b4 {[%emt 0:00:10]} 8. Nce2 {[%emt 0:00:13]} a5 {[%emt 0:00:10]} 9. Bh6 {[%emt 0:03:02]} Bxh6 {[%emt 0:08:12]} 10. Qxh6 {[%emt 0:00:05]} Qb6 {[%emt 0:05:23]} 11. Nf4 {[%emt 0:04:16]} Ba6 {[%emt 0:06:11]} 12. Ngh3 {[%emt 0:15:29]} Nbd7 {[%emt 0:09:59]} 13. Bxa6 {[%emt 0:04:22]} Qxa6 {[%emt 0:08:19]} 14. Rhe1 {[%emt 0:02:02]} e5 {[%emt 0:08:45]} 15. dxe5 {[%emt 0:03:02]} dxe5 {[%emt 0:00:16]} 16. Nd3 {[%emt 0:00:16]} O-O-O {[%emt 0:10:47]} 17. Qe3 {[%emt 0:15:54]} Rhe8 {[%emt 0:08:24]} 18. Nhf2 {[%emt 0:10:53]} Qb6 {[%emt 0:07:49]} 19. Qxb6 {[%emt 0:09:32]} Nxb6 {[%emt 0:00:03]} 20. Nc5 {[%emt 0:00:46]} Nc4 {[%emt 0:09:25]} 21. Nfd3 {[%emt 0:03:32]} Nd7 {[%emt 0:05:54]} 22. Nxd7 {[%emt 0:04:30]} Rxd7 {[%emt 0:00:01]} 23. Nc5 {[%emt 0:00:09]} Rdd8 {[%emt 0:00:23]} 24. Rd3 {[%emt 0:05:29]} Rxd3 {[%emt 0:03:27]} 25. cxd3 {[%emt 0:00:29]} Nd6 {[%emt 0:00:36]} 26. Kc2 {[%emt 0:05:10]} Nb5 {[%emt 0:00:52]} 27. Kb3 {[%emt 0:01:24]} Nd4+ {[%emt 0:00:49]} 28. Kc4 {[%emt 0:01:45]} Nb5 {[%emt 0:02:22]} 29. Rd1 {[%emt 0:04:10]} Kc7 {[%emt 0:01:30]} 30. Kb3 {[%emt 0:01:26]} Rd8 {[%emt 0:01:43]} 31. a3 {[%emt 0:01:46]} Nd4+ {[%emt 0:02:16]} 32. Kc4 {[%emt 0:02:06]} bxa3 {[%emt 0:00:36]} 33. bxa3 {[%emt 0:00:02]} Nb5 {[%emt 0:00:37]} 34. a4 {[%emt 0:01:01]} Nd6+ {[%emt 0:00:22]} 35. Kc3 {[%emt 0:00:22]} Kb6 {[%emt 0:00:29]} 36. Nb3 {[%emt 0:00:42]} Nb7 {[%emt 0:00:16]} 37. Rb1 {[%emt 0:00:41]} Kc7 {[%emt 0:00:10]} 38. Rd1 {[%emt 0:01:18]} Rd7 {[%emt 0:01:00]} 39. Rd2 {[%emt 0:00:25]} h5 {[%emt 0:00:32]} 40. g3 {[%emt 0:01:19]} g5 {[%emt 0:00:18]} 41. d4 {[%emt 0:11:40]} exd4+ {[%emt 0:04:00]} 42. Rxd4 {[%emt 0:00:34]} Re7 {[%emt 0:00:29]} 43. Rc4 {[%emt 0:02:06]} Kb6 {[%emt 0:08:29]} 44. Rd4 {[%emt 0:02:05]} Kc7 {[%emt 0:02:22]} 45. Rc4 {[%emt 0:03:32]} g4 {[%emt 0:06:10]} 46. fxg4 {[%emt 0:07:03]} hxg4 {[%emt 0:02:29]} 47. Kd3 {[%emt 0:02:21]} Nd6 {[%emt 0:03:04]} 48. Rd4 {[%emt 0:00:32]} Re5 {[%emt 0:00:55]} 49. Nd2 {[%emt 0:03:01]} Nb7 {[%emt 0:03:00]} 50. Ke3 {[%emt 0:00:59]} Rh5 {[%emt 0:01:30]} 51. Kf4 {[%emt 0:01:05]} Rxh2 {[%emt 0:00:08]} 52. Kxg4 {[%emt 0:00:01]} Nc5 {[%emt 0:00:33]} 53. Nc4 {[%emt 0:01:07]} Nb3 {[%emt 0:01:14]} 54. Rd3 {[%emt 0:00:19]} Nc5 {[%emt 0:00:48]} 55. Rf3 {[%emt 0:00:33]} Re2 {[%emt 0:01:37]} 56. Rxf7+ {[%emt 0:00:39]} Kd8 {[%emt 0:00:56]} 57. Nxa5 {[%emt 0:00:45]} Rxe4+ {[%emt 0:00:38]} 58. Kf5 {[%emt 0:00:03]} Rxa4 {[%emt 0:00:34]} 59. Nxc6+ {[%emt 0:00:16]} Ke8 {[%emt 0:00:35]} 60. Rf6 {[%emt 0:00:50]} Ra1 {[%emt 0:00:41]} 61. Kg4 {[%emt 0:01:06]} Rg1 {[%emt 0:00:28]} 62. Rf5 {[%emt 0:00:24]} Nd7 {[%emt 0:00:26]} 63. Kh4 {[%emt 0:00:14]} Rc1 {[%emt 0:00:21]} 64. Nd4 {[%emt 0:00:40]} Rc5 {[%emt 0:00:21]} 65. Rxc5 {[%emt 0:00:31]} Nxc5 {[%emt 0:00:02]} 66. g4 {[%emt 0:00:09]} Ne4 {[%emt 0:00:06]} 67. g5 {[%emt 0:00:06]} Nxg5 {[%emt 0:00:09]} 1/2-1/2

[Event "106th British-ch Major 2019"]
[Site "Torquay"]
[Date "2019.07.29"]
[Round "3.30"]
[White "Ruane, Brendan J"]
[Black "Wilson, Matthew R"]
[Result "1-0"]
[ECO "C30"]
[WhiteElo "1904"]
[BlackElo "1817"]
[Annotator "NA"]
[PlyCount "73"]
[EventDate "2019.07.27"]
[EventType "swiss"]
[EventCountry "GBR"]
[SourceTitle "playchess.com"]
[Source "ChessBase"]
[SourceQuality "1"]
[TimeControl "40/5400+30:1800+30"]

1. e4 {[%emt 0:00:00]} e5 {[%emt 0:00:00]} 2. Nc3 {[%emt 0:00:28]} Nf6 {[%emt 0:00:02]} 3. Bc4 {[%emt 0:00:10]} Nc6 {[%emt 0:02:10]} 4. d3 {[%emt 0:00:23]} Bc5 {[%emt 0:06:04]} 5. f4 {[%emt 0:00:53]} d6 {[%emt 0:01:26]} 6. Nf3 {[%emt 0:01:36]} Ng4 {[%emt 0:04:26]} 7. Qe2 {[%emt 0:00:16]} Bf2+ {[%emt 0:03:50]} 8. Kf1 {[%emt 0:00:30]} Nd4 {[%emt 0:05:27]} 9. Nxd4 {[%emt 0:00:28]} Bxd4 {[%emt 0:00:39]} 10. f5 {[%emt 0:03:21]} h5 {[%emt 0:14:11]} 11. Nd1 {[%emt 0:09:58]} g6 {[%emt 0:08:26]} 12. c3 {[%emt 0:03:53]} Bb6 {[%emt 0:00:07]} 13. h3 {[%emt 0:00:16]} Nh6 {[%emt 0:08:10]} 14. g4 {[%emt 0:12:36]} Qh4 {[%emt 0:01:05]} 15. Qf3 {[%emt 0:00:17]} gxf5 {[%emt 0:06:14]} 16. gxf5 {[%emt 0:00:34]} Bd7 {[%emt 0:04:35]} 17. Be3 {[%emt 0:01:23]} Bxe3 {[%emt 0:04:26]} 18. Nxe3 {[%emt 0:00:03]} O-O-O {[%emt 0:00:45]} 19. Ke2 {[%emt 0:01:36]} Rhg8 {[%emt 0:03:41]} 20. Rhg1 {[%emt 0:01:43]} Rg5 {[%emt 0:01:41]} 21. Qf2 {[%emt 0:07:29]} Qxf2+ {[%emt 0:04:21]} 22. Kxf2 {[%emt 0:00:04]} Rdg8 {[%emt 0:02:01]} 23. Rxg5 {[%emt 0:01:08]} Rxg5 {[%emt 0:00:01]} 24. Rg1 {[%emt 0:00:17]} Rxg1 {[%emt 0:00:34]} 25. Kxg1 {[%emt 0:00:03]} c6 {[%emt 0:01:52]} 26. Kf2 {[%emt 0:00:18]} f6 {[%emt 0:04:50]} 27. Kg3 {[%emt 0:00:28]} Be8 {[%emt 0:01:37]} 28. Kh4 {[%emt 0:02:03]} Kd8 {[%emt 0:00:33]} 29. Bb3 {[%emt 0:03:21]} Nf7 {[%emt 0:04:42]} 30. Kxh5 {[%emt 0:04:31]} Ke7 {[%emt 0:00:56]} 31. a3 {[%emt 0:11:36]} b5 {[%emt 0:00:46]} 32. Bxf7 {[%emt 0:00:44]} Bxf7+ {[%emt 0:00:08]} 33. Kh6 {[%emt 0:00:19]} Ba2 {[%emt 0:01:48]} 34. Kg7 {[%emt 0:03:37]} Bb1 {[%emt 0:00:10]} 35. h4 {[%emt 0:00:32]} Bxd3 {[%emt 0:02:55]} 36. h5 {[%emt 0:00:12]} Bxe4 {[%emt 0:01:17]} 37. h6 {[%emt 0:00:13]} 1-0

[Event "106th British-ch Major 2019"]
[Site "Torquay"]
[Date "2019.07.29"]
[Round "3.31"]
[White "Forster, James Connor C"]
[Black "Paulden, Tim"]
[Result "1/2-1/2"]
[ECO "A42"]
[WhiteElo "1831"]
[BlackElo "1902"]
[Annotator "NA"]
[PlyCount "47"]
[EventDate "2019.07.27"]
[EventType "swiss"]
[EventCountry "GBR"]
[SourceTitle "playchess.com"]
[Source "ChessBase"]
[SourceQuality "1"]
[TimeControl "40/5400+30:1800+30"]

1. d4 {[%emt 0:00:00]} g6 {[%emt 0:00:00]} 2. c4 {[%emt 0:00:00]} Bg7 {[%emt 0:00:00]} 3. Nc3 {[%emt 0:00:36]} d6 {[%emt 0:00:00]} 4. e4 {[%emt 0:00:36]} e5 {[%emt 0:00:00]} 5. Nf3 {[%emt 0:03:57]} Nc6 {[%emt 0:01:05]} 6. Be3 {[%emt 0:04:04]} Bg4 {[%emt 0:04:44]} 7. d5 {[%emt 0:04:45]} Nd4 {[%emt 0:02:35]} 8. Be2 {[%emt 0:09:25]} Nxe2 {[%emt 0:15:08]} 9. Qxe2 {[%emt 0:00:31]} h5 {[%emt 0:06:21]} 10. h3 {[%emt 0:09:47]} Bd7 {[%emt 0:05:50]} 11. Nd2 {[%emt 0:05:45]} b6 {[%emt 0:05:12]} 12. O-O {[%emt 0:05:56]} g5 {[%emt 0:03:41]} 13. Kh2 {[%emt 0:21:54]} f6 {[%emt 0:01:39]} 14. b4 {[%emt 0:06:44]} Nh6 {[%emt 0:11:51]} 15. c5 {[%emt 0:07:29]} Nf7 {[%emt 0:01:49]} 16. Nc4 {[%emt 0:02:19]} Bf8 {[%emt 0:01:40]} 17. cxb6 {[%emt 0:02:25]} cxb6 {[%emt 0:02:36]} 18. Rac1 {[%emt 0:00:37]} Be7 {[%emt 0:02:20]} 19. Na3 {[%emt 0:01:42]} Qb8 {[%emt 0:04:28]} 20. Ncb5 {[%emt 0:02:00]} Bd8 {[%emt 0:00:41]} 21. Rc2 {[%emt 0:00:55]} a6 {[%emt 0:01:12]} 22. Nc3 {[%emt 0:00:05]} b5 {[%emt 0:00:47]} 23. Nab1 {[%emt 0:01:24]} Bb6 {[%emt 0:00:55]} 24. Rfc1 {[%emt 0:05:55]} 1/2-1/2

[Event "106th British-ch Major 2019"]
[Site "Torquay"]
[Date "2019.07.29"]
[Round "3.32"]
[White "Hilton, Tim"]
[Black "Howell, Oliver W"]
[Result "1/2-1/2"]
[ECO "D00"]
[WhiteElo "1892"]
[BlackElo "1797"]
[Annotator "NA"]
[PlyCount "34"]
[EventDate "2019.07.27"]
[EventType "swiss"]
[EventCountry "GBR"]
[SourceTitle "playchess.com"]
[Source "ChessBase"]
[SourceQuality "1"]
[TimeControl "40/5400+30:1800+30"]

1. d4 {[%emt 1:13:15]} Nf6 {[%emt 0:00:13]} 2. Nc3 {[%emt 0:00:07]} d5 {[%emt 0:00:26]} 3. Bf4 {[%emt 0:00:06]} e6 {[%emt 0:00:21]} 4. e3 {[%emt 0:00:06]} Bd6 {[%emt 0:00:32]} 5. Nf3 {[%emt 0:00:19]} Bxf4 {[%emt 0:00:26]} 6. exf4 {[%emt 0:00:04]} O-O {[%emt 0:03:17]} 7. Ne5 {[%emt 0:03:07]} Nbd7 {[%emt 0:05:55]} 8. g4 {[%emt 0:07:41]} c5 {[%emt 0:08:35]} 9. g5 {[%emt 0:02:14]} Ne4 {[%emt 0:02:02]} 10. Nxe4 {[%emt 0:02:20]} dxe4 {[%emt 0:00:36]} 11. c3 {[%emt 0:08:36]} cxd4 {[%emt 0:17:45]} 12. Qxd4 {[%emt 0:02:29]} f6 {[%emt 0:20:00]} 13. gxf6 {[%emt 0:09:10]} Qxf6 {[%emt 0:03:20]} 14. Qxe4 {[%emt 0:27:42]} Nxe5 {[%emt 0:05:49]} 15. Qxe5 {[%emt 0:00:04]} Qxf4 {[%emt 0:01:13]} 16. Qxf4 {[%emt 0:00:28]} Rxf4 {[%emt 0:00:07]} 17. Rd1 {[%emt 0:01:22]} b6 {[%emt 0:11:07]} 1/2-1/2

[Event "106th British-ch Major 2019"]
[Site "Torquay"]
[Date "2019.07.29"]
[Round "3.33"]
[White "Gray, Edward"]
[Black "Miller, George I"]
[Result "1/2-1/2"]
[ECO "C54"]
[WhiteElo "1757"]
[BlackElo "1891"]
[Annotator "NA"]
[PlyCount "61"]
[EventDate "2019.07.27"]
[EventType "swiss"]
[EventCountry "GBR"]
[SourceTitle "playchess.com"]
[Source "ChessBase"]
[SourceQuality "1"]
[TimeControl "40/5400+30:1800+30"]

1. e4 {[%emt 0:00:00]} e5 {[%emt 0:00:00]} 2. Nf3 {[%emt 0:00:00]} Nc6 {[%emt 0:00:00]} 3. Bc4 {[%emt 0:00:02]} Nf6 {[%emt 0:00:13]} 4. d3 {[%emt 0:00:06]} Bc5 {[%emt 0:00:25]} 5. c3 {[%emt 0:00:19]} a5 {[%emt 0:06:16]} 6. O-O {[%emt 0:00:38]} d6 {[%emt 0:03:49]} 7. h3 {[%emt 0:00:11]} h6 {[%emt 0:00:12]} 8. Nbd2 {[%emt 0:00:58]} g5 {[%emt 0:04:56]} 9. Nb3 {[%emt 0:07:49]} Bb6 {[%emt 0:01:48]} 10. Be3 {[%emt 0:01:45]} g4 {[%emt 0:03:00]} 11. hxg4 {[%emt 0:00:14]} Bxe3 {[%emt 0:00:29]} 12. fxe3 {[%emt 0:00:29]} Bxg4 {[%emt 0:03:59]} 13. Qe1 {[%emt 0:01:44]} a4 {[%emt 0:02:49]} 14. Nbd2 {[%emt 0:01:03]} Na5 {[%emt 0:00:41]} 15. Bb5+ {[%emt 0:04:15]} c6 {[%emt 0:00:06]} 16. Bxa4 {[%emt 0:00:17]} b5 {[%emt 0:00:06]} 17. Bb3 {[%emt 0:00:30]} Nxb3 {[%emt 0:00:07]} 18. Nxb3 {[%emt 0:00:47]} Be6 {[%emt 0:00:46]} 19. Qh4 {[%emt 0:01:34]} Ng4 {[%emt 0:03:36]} 20. Qxd8+ {[%emt 0:00:59]} Kxd8 {[%emt 0:00:03]} 21. Rfe1 {[%emt 0:04:41]} Kc7 {[%emt 0:03:20]} 22. Nh2 {[%emt 0:04:44]} Nxe3 {[%emt 0:08:17]} 23. Rxe3 {[%emt 0:00:26]} Bxb3 {[%emt 0:00:07]} 24. a3 {[%emt 0:00:05]} Rag8 {[%emt 0:00:13]} 25. Nf3 {[%emt 0:02:06]} Rg4 {[%emt 0:05:39]} 26. Kf2 {[%emt 0:00:56]} Rhg8 {[%emt 0:00:10]} 27. Rg1 {[%emt 0:00:09]} Kd7 {[%emt 0:06:15]} 28. g3 {[%emt 0:01:53]} Be6 {[%emt 0:13:52]} 29. Nh4 {[%emt 0:01:17]} Ke7 {[%emt 0:03:35]} 30. Rf3 {[%emt 0:01:07]} R4g5 {[%emt 0:00:54]} 31. Rh1 {[%emt 0:03:29]} 1/2-1/2

[Event "106th British-ch Major 2019"]
[Site "Torquay"]
[Date "2019.07.29"]
[Round "3.34"]
[White "Tombolis, Christopher"]
[Black "Gogia, Armaan"]
[Result "1-0"]
[ECO "E99"]
[WhiteElo "1883"]
[BlackElo "1754"]
[Annotator "NA"]
[PlyCount "59"]
[EventDate "2019.07.27"]
[EventType "swiss"]
[EventCountry "GBR"]
[SourceTitle "playchess.com"]
[Source "ChessBase"]
[SourceQuality "1"]
[TimeControl "40/5400+30:1800+30"]

1. d4 {[%emt 0:00:00]} Nf6 {[%emt 0:00:00]} 2. c4 {[%emt 0:00:00]} g6 {[%emt 0:00:00]} 3. Nc3 {[%emt 0:00:00]} Bg7 {[%emt 0:00:00]} 4. e4 {[%emt 0:00:00]} d6 {[%emt 0:00:00]} 5. Nf3 {[%emt 0:00:00]} O-O {[%emt 0:00:00]} 6. Be2 {[%emt 0:00:02]} e5 {[%emt 0:00:00]} 7. O-O {[%emt 0:00:06]} Nc6 {[%emt 0:00:02]} 8. d5 {[%emt 0:00:06]} Ne7 {[%emt 0:00:02]} 9. Ne1 {[%emt 0:00:09]} Nd7 {[%emt 0:00:03]} 10. Be3 {[%emt 0:00:09]} f5 {[%emt 0:00:06]} 11. f3 {[%emt 0:00:04]} f4 {[%emt 0:00:05]} 12. Bf2 {[%emt 0:00:08]} g5 {[%emt 0:00:10]} 13. Rc1 {[%emt 0:00:25]} h5 {[%emt 0:03:49]} 14. b4 {[%emt 0:13:19]} Nf6 {[%emt 0:09:50]} 15. c5 {[%emt 0:00:16]} g4 {[%emt 0:09:08]} 16. cxd6 {[%emt 0:00:06]} cxd6 {[%emt 0:00:03]} 17. Nb5 {[%emt 0:00:31]} g3 {[%emt 0:11:40]} 18. hxg3 {[%emt 0:01:22]} fxg3 {[%emt 0:00:18]} 19. Bxg3 {[%emt 0:00:14]} Bh6 {[%emt 0:00:30]} 20. Nc7 {[%emt 0:18:56]} Bxc1 {[%emt 0:04:19]} 21. Qxc1 {[%emt 0:01:19]} Rb8 {[%emt 0:00:20]} 22. Qg5+ {[%emt 0:00:16]} Kh7 {[%emt 0:01:50]} 23. f4 {[%emt 0:01:55]} exf4 {[%emt 0:10:18]} 24. Bxf4 {[%emt 0:01:58]} Neg8 {[%emt 0:02:44]} 25. Bxh5 {[%emt 0:00:18]} Nxh5 {[%emt 0:01:22]} 26. Qxh5+ {[%emt 0:00:08]} Kg7 {[%emt 0:00:15]} 27. Rf3 {[%emt 0:01:04]} Rxf4 {[%emt 0:10:44]} 28. Ne8+ {[%emt 0:00:29]} Qxe8 {[%emt 0:01:41]} 29. Qxe8 {[%emt 0:00:05]} Rxf3 {[%emt 0:00:06]} 30. Nxf3 {[%emt 0:00:18]} 1-0

[Event "106th British-ch Major 2019"]
[Site "Torquay"]
[Date "2019.07.29"]
[Round "3.35"]
[White "Sanitt, Ethan"]
[Black "Ingham, H William"]
[Result "1-0"]
[ECO "D13"]
[WhiteElo "1752"]
[BlackElo "1854"]
[Annotator "NA"]
[PlyCount "81"]
[EventDate "2019.07.27"]
[EventType "swiss"]
[EventCountry "GBR"]
[SourceTitle "playchess.com"]
[Source "ChessBase"]
[SourceQuality "1"]
[TimeControl "40/5400+30:1800+30"]

1. c4 {[%emt 0:00:00]} Nf6 {[%emt 0:00:00]} 2. g3 {[%emt 0:00:00]} c6 {[%emt 0:00:00]} 3. Nc3 {[%emt 0:01:03]} d5 {[%emt 0:00:00]} 4. cxd5 {[%emt 0:00:30]} cxd5 {[%emt 0:00:22]} 5. d4 {[%emt 0:03:38]} Nc6 {[%emt 0:00:20]} 6. Bg2 {[%emt 0:01:57]} Bf5 {[%emt 0:00:43]} 7. Nf3 {[%emt 0:03:52]} e6 {[%emt 0:00:11]} 8. a3 {[%emt 0:02:53]} Be7 {[%emt 0:00:39]} 9. b4 {[%emt 0:04:42]} Rc8 {[%emt 0:00:38]} 10. O-O {[%emt 0:16:04]} O-O {[%emt 0:05:06]} 11. Na4 {[%emt 0:01:39]} h6 {[%emt 0:02:24]} 12. Bd2 {[%emt 0:08:24]} Ne4 {[%emt 0:01:18]} 13. e3 {[%emt 0:05:27]} b6 {[%emt 0:15:27]} 14. Rc1 {[%emt 0:03:16]} Nd6 {[%emt 0:02:03]} 15. Qb3 {[%emt 0:04:44]} Nc4 {[%emt 0:03:12]} 16. Bc3 {[%emt 0:06:05]} Nb8 {[%emt 0:03:57]} 17. Nd2 {[%emt 0:03:06]} Qd7 {[%emt 0:03:09]} 18. Rfe1 {[%emt 0:04:32]} Nxd2 {[%emt 0:03:27]} 19. Bxd2 {[%emt 0:00:20]} Rxc1 {[%emt 0:00:38]} 20. Bxc1 {[%emt 0:05:22]} Rc8 {[%emt 0:00:31]} 21. Nc3 {[%emt 0:00:10]} Bf6 {[%emt 0:07:05]} 22. b5 {[%emt 0:00:30]} Rc4 {[%emt 0:00:30]} 23. Bf1 {[%emt 0:00:30]} Rc7 {[%emt 0:00:30]} 24. a4 {[%emt 0:00:30]} Qc8 {[%emt 0:00:30]} 25. Bb2 {[%emt 0:00:30]} Nd7 {[%emt 0:00:30]} 26. Rc1 {[%emt 0:00:30]} Be7 {[%emt 0:00:30]} 27. f3 {[%emt 0:00:30]} Nf6 {[%emt 0:00:30]} 28. Ra1 {[%emt 0:00:30]} g5 {[%emt 0:00:30]} 29. g4 {[%emt 0:00:30]} Bg6 {[%emt 0:00:30]} 30. a5 {[%emt 0:00:30]} Nd7 {[%emt 0:00:30]} 31. a6 {[%emt 0:00:30]} h5 {[%emt 0:00:30]} 32. h3 {[%emt 0:00:30]} hxg4 {[%emt 0:00:30]} 33. hxg4 {[%emt 0:00:30]} Kg7 {[%emt 0:00:30]} 34. Re1 {[%emt 0:00:30]} Qh8 {[%emt 0:00:30]} 35. Re2 {[%emt 0:00:30]} Bd3 {[%emt 0:00:30]} 36. Rh2 {[%emt 0:00:30]} Bc4 {[%emt 0:00:30]} 37. Bxc4 {[%emt 0:00:30]} dxc4 {[%emt 0:00:30]} 38. Qc2 {[%emt 0:00:30]} Qg8 {[%emt 0:00:30]} 39. Ne4 {[%emt 0:00:30]} Kf8 {[%emt 0:00:30]} 40. Rh5 {[%emt 0:00:30]} f6 {[%emt 0:00:30]} 41. Qh2 {[%emt 0:30:30]} 1-0

[Event "106th British-ch Major 2019"]
[Site "Torquay"]
[Date "2019.07.30"]
[Round "4.1"]
[White "Pollack, Oscar"]
[Black "Clarke, Brandon Gi"]
[Result "0-1"]
[ECO "B91"]
[WhiteElo "2088"]
[BlackElo "2433"]
[Annotator "ChessBase"]
[PlyCount "127"]
[EventDate "2019.07.27"]
[EventType "swiss"]
[EventCountry "GBR"]
[SourceTitle "playchess.com"]
[Source "ChessBase"]
[SourceQuality "1"]
[TimeControl "40/5400+30:1800+30"]

1. e4 {[%emt 0:00:00]} c5 {[%emt 0:00:00]} 2. Nf3 {[%emt 0:00:00]} d6 {[%emt 0:01:13]} 3. d4 {[%emt 0:00:00]} cxd4 {[%emt 0:00:07]} 4. Nxd4 {[%emt 0:00:00]} Nf6 {[%emt 0:00:09]} 5. Nc3 {[%emt 0:00:00]} a6 {[%emt 0:00:35]} 6. g3 {[%emt 0:00:00]} e5 {[%emt 0:02:11]} 7. Nb3 {[%emt 0:00:24]} Be6 {[%emt 0:04:33]} 8. Bg2 {[%emt 0:00:24]} Be7 {[%emt 0:00:39]} 9. O-O {[%emt 0:00:31]} Nbd7 {[%emt 0:02:13]} 10. Re1 {[%emt 0:00:44]} b5 {[%emt 0:03:40]} 11. a4 {[%emt 0:00:30]} b4 {[%emt 0:01:27]} 12. Nd5 {[%emt 0:00:23]} Nxd5 {[%emt 0:00:59]} 13. exd5 {[%emt 0:01:11]} Bf5 {[%emt 0:00:03]} 14. Be3 {[%emt 0:07:18]} O-O {[%emt 0:25:20]} 15. a5 {[%emt 0:05:39]} Bg5 {[%emt 0:06:33]} 16. Bf1 {[%emt 0:18:53]} Bxe3 {[%emt 0:16:39]} 17. Rxe3 {[%emt 0:00:23]} Qc7 {[%emt 0:00:57]} 18. c3 {[%emt 0:03:22]} Qb7 {[%emt 0:06:16]} 19. cxb4 {[%emt 0:07:21]} Nf6 {[%emt 0:03:31]} 20. Qd2 {[%emt 0:06:27]} Rfb8 {[%emt 0:04:33]} 21. b5 {[%emt 0:02:16]} axb5 {[%emt 0:00:25]} 22. Bg2 {[%emt 0:03:24]} b4 {[%emt 0:02:36]} 23. Rc1 {[%emt 0:04:33]} Bd7 {[%emt 0:00:01]} 24. Ra1 {[%emt 0:07:59]} h6 {[%emt 0:01:11]} 25. Nc1 {[%emt 0:02:30]} Qc7 {[%emt 0:01:18]} 26. Nb3 {[%emt 0:03:44]} Rb5 {[%emt 0:02:50]} 27. Bf1 {[%emt 0:02:46]} Rbb8 {[%emt 0:00:54]} 28. Ree1 {[%emt 0:02:16]} Bb5 {[%emt 0:01:21]} 29. Rec1 {[%emt 0:02:04]} Qd7 {[%emt 0:00:13]} 30. Bxb5 {[%emt 0:01:09]} Rxb5 {[%emt 0:00:11]} 31. Rc6 {[%emt 0:02:51]} Rxd5 {[%emt 0:00:25]} 32. Qc2 {[%emt 0:01:12]} e4 {[%emt 0:00:58]} 33. a6 {[%emt 0:01:01]} Qh3 {[%emt 0:02:31]} 34. a7 {[%emt 0:02:31]} Ng4 {[%emt 0:07:07]} 35. f4 {[%emt 0:05:21]} exf3 {[%emt 0:00:08]} 36. Rc8+ {[%emt 0:00:24]} Rxc8 {[%emt 0:00:02]} 37. Qxc8+ {[%emt 0:00:07]} Kh7 {[%emt 0:00:04]} 38. Qc2+ {[%emt 0:00:08]} g6 {[%emt 0:02:19]} 39. a8=Q {[%emt 0:00:08]} Rf5 {[%emt 0:00:58]} 40. Rf1 {[%emt 0:06:43]} f2+ {[%emt 0:00:34]} 41. Rxf2 {[%emt 0:30:01]} Rxf2 {[%emt 0:30:17]} 42. Qxf2 {[%emt 0:00:24]} Nxf2 {[%emt 0:00:02]} 43. Kxf2 {[%emt 0:00:32]} Qf5+ {[%emt 0:00:00]} 44. Qf3 {[%emt 0:00:00]} Qc2+ {[%emt 0:00:00]} 45. Kg1 {[%emt 0:00:00]} Kg7 {[%emt 0:00:00]} 46. Qe3 {[%emt 0:00:00]} Qxb2 {[%emt 0:00:00]} 47. Qd4+ {[%emt 0:00:00]} Qxd4+ {[%emt 0:00:00]} 48. Nxd4 {[%emt 0:00:00]} f5 {[%emt 0:00:00]} 49. Kf2 {[%emt 0:00:00]} Kf6 {[%emt 0:00:00]} 50. Ke3 {[%emt 0:00:00]} Kg5 {[%emt 0:00:00]} 51. Kf3 {[%emt 0:00:00]} Kf6 {[%emt 0:00:00]} 52. h4 {[%emt 0:00:00]} Kf7 {[%emt 0:00:00]} 53. Ke3 {[%emt 0:00:00]} Kf6 {[%emt 0:00:00]} 54. Kd3 {[%emt 0:01:50]} g5 {[%emt 0:01:48]} 55. h5 {[%emt 0:00:00]} g4 {[%emt 0:05:24]} 56. Kc4 {[%emt 0:00:00]} Ke5 {[%emt 0:01:15]} 57. Nc6+ {[%emt 0:03:17]} Ke4 {[%emt 0:00:05]} 58. Nxb4 {[%emt 0:01:36]} f4 {[%emt 0:00:12]} 59. Nd3 {[%emt 0:00:34]} fxg3 {[%emt 0:00:32]} 60. Ne1 {[%emt 0:00:12]} Ke3 {[%emt 0:00:24]} 61. Kd5 {[%emt 0:00:47]} Ke2 {[%emt 0:00:10]} 62. Ng2 {[%emt 0:00:08]} Kf2 {[%emt 0:00:08]} 63. Nf4 {[%emt 0:00:10]} g2 {[%emt 0:00:09]} 64. Nxg2 {[%emt 0:00:03]} 0-1

[Event "106th British-ch Major 2019"]
[Site "Torquay"]
[Date "2019.07.30"]
[Round "4.2"]
[White "Taylor, Adam A"]
[Black "Hagesather, Arne"]
[Result "1-0"]
[ECO "A07"]
[WhiteElo "2168"]
[BlackElo "2046"]
[Annotator "NA"]
[PlyCount "73"]
[EventDate "2019.07.27"]
[EventType "swiss"]
[EventCountry "GBR"]
[SourceTitle "playchess.com"]
[Source "ChessBase"]
[SourceQuality "1"]
[TimeControl "40/5400+30:1800+30"]

1. Nf3 {[%emt 0:00:00]} d5 {[%emt 0:00:00]} 2. g3 {[%emt 0:00:00]} Nf6 {[%emt 0:01:12]} 3. Bg2 {[%emt 0:00:00]} g6 {[%emt 0:01:16]} 4. O-O {[%emt 0:00:03]} Bg7 {[%emt 0:00:09]} 5. c4 {[%emt 0:04:54]} d4 {[%emt 0:02:22]} 6. e3 {[%emt 0:01:07]} c5 {[%emt 0:01:03]} 7. exd4 {[%emt 0:01:24]} cxd4 {[%emt 0:00:58]} 8. b4 {[%emt 0:12:30]} O-O {[%emt 0:13:51]} 9. Bb2 {[%emt 0:00:53]} Ng4 {[%emt 0:04:12]} 10. Re1 {[%emt 0:04:17]} Re8 {[%emt 0:06:49]} 11. h3 {[%emt 0:15:06]} Nh6 {[%emt 0:00:47]} 12. d3 {[%emt 0:00:14]} e5 {[%emt 0:02:58]} 13. Nbd2 {[%emt 0:01:20]} Na6 {[%emt 0:04:36]} 14. a3 {[%emt 0:01:29]} Rb8 {[%emt 0:00:27]} 15. Ne4 {[%emt 0:15:50]} f5 {[%emt 0:04:35]} 16. Neg5 {[%emt 0:06:40]} Bf6 {[%emt 0:06:19]} 17. h4 {[%emt 0:02:28]} Bd7 {[%emt 0:06:01]} 18. Rc1 {[%emt 0:06:33]} Ng4 {[%emt 0:03:52]} 19. c5 {[%emt 0:00:53]} Kg7 {[%emt 0:03:03]} 20. Qb3 {[%emt 0:03:04]} Re7 {[%emt 0:00:58]} 21. Nh2 {[%emt 0:06:46]} Nxh2 {[%emt 0:04:59]} 22. Kxh2 {[%emt 0:00:05]} Qe8 {[%emt 0:00:10]} 23. f4 {[%emt 0:10:14]} Ba4 {[%emt 0:05:58]} 24. Qa2 {[%emt 0:00:39]} Rd8 {[%emt 0:04:35]} 25. fxe5 {[%emt 0:01:52]} Bxe5 {[%emt 0:01:21]} 26. Nf3 {[%emt 0:00:15]} Bc6 {[%emt 0:02:54]} 27. Qa1 {[%emt 0:02:58]} Kg8 {[%emt 0:10:55]} 28. Nxe5 {[%emt 0:00:59]} Bxg2 {[%emt 0:01:45]} 29. Bxd4 {[%emt 0:01:06]} Bd5 {[%emt 0:00:30]} 30. Re3 {[%emt 0:00:33]} g5 {[%emt 0:01:27]} 31. Rce1 {[%emt 0:00:28]} Nc7 {[%emt 0:00:59]} 32. Ng4 {[%emt 0:00:09]} fxg4 {[%emt 0:02:52]} 33. Rxe7 {[%emt 0:00:04]} Qc6 {[%emt 0:00:14]} 34. Rg7+ {[%emt 0:00:48]} Kf8 {[%emt 0:00:09]} 35. Rxg5 {[%emt 0:00:31]} Bf3 {[%emt 0:00:59]} 36. Bf2 {[%emt 0:00:44]} Ne6 {[%emt 0:01:57]} 37. Qf6+ {[%emt 0:00:04]} 1-0